fUSD/lending_fUSD_20241227
["ID","MTS","AMOUNT","RATE_DAILY","PERIOD"]
[346883247,1735339854632,-500.0,0.00010764,2]
[346883248,1735339854641,-500.0,0.00010764,2]
[346883249,1735339854651,-500.0,0.00010764,2]
[346883250,1735339854660,-500.0,0.00010764,2]
[346883251,1735339854670,-500.0,0.00010764,2]
[346883252,1735339854679,-500.0,0.00010764,2]
[346883253,1735339854689,-534.5,0.00010764,2]
[346883254,1735339854698,-500.0,0.00010764,2]
[346883255,1735339854707,-500.0,0.00010764,2]
[346883256,1735339854716,-500.0,0.00010764,2]
[346883257,1735339854726,-500.0,0.00010764,2]
[346883258,1735339854735,-500.0,0.00010764,2]
[346883259,1735339854745,-500.0,0.00010764,2]
[346883260,1735339854754,-500.0,0.00010764,2]
[346883261,1735339854765,-500.0,0.00010764,2]
[346883262,1735339854775,-500.0,0.00010764,2]
[346883263,1735339854787,-500.0,0.00010764,2]
[346883264,1735339854798,-500.0,0.00010764,2]
[346883265,1735339854807,-500.0,0.00010764,2]
[346883266,1735339854817,-568.53,0.00010764,2]
[346883267,1735339854826,-500.0,0.00010764,2]
[346883268,1735339854836,-500.0,0.00010764,2]
[346883269,1735339854845,-500.0,0.00010764,2]
[346883270,1735339854855,-500.0,0.00010764,2]
[346883271,1735339854864,-500.0,0.00010764,2]
[346883272,1735339854874,-500.0,0.00010764,2]
[346883273,1735339854883,-500.0,0.00010764,2]
[346883274,1735339854893,-635.27,0.00010764,2]
[346883275,1735339854902,-500.0,0.00010764,2]
[346883276,1735339854912,-500.0,0.00010764,2]
[346883277,1735339854921,-500.0,0.00010764,2]
[346883278,1735339854930,-500.0,0.00010764,2]
[346883279,1735339854940,-329.44638812,0.00010764,2]
[346883280,1735339854950,-500.0,0.00010764,2]
[346883281,1735339854959,-500.0,0.00010764,2]
[346883282,1735339854968,-500.0,0.00010764,2]
[346883283,1735339854978,-504.62,0.00010764,2]
[346883284,1735339854989,-500.0,0.00010764,2]
[346883285,1735339854999,-500.0,0.00010764,2]
[346883286,1735339855008,-500.0,0.00010764,2]
[346883287,1735339855017,-596.66,0.00010764,2]
[346883288,1735339855027,-500.0,0.00010764,2]
[346883289,1735339855037,-500.0,0.00010764,2]
[346883290,1735339855046,-539.41,0.00010764,2]
[346883291,1735339855055,-500.0,0.00010764,2]
[346883292,1735339855065,-500.0,0.00010764,2]
[346883293,1735339855075,-500.0,0.00010764,2]
[346883294,1735339855088,-500.0,0.00010764,2]
[346883295,1735339855098,-500.0,0.00010764,2]
[346883296,1735339855107,-500.0,0.00010764,2]
[346883297,1735339855117,-500.0,0.00010764,2]
[346883298,1735339855127,-500.0,0.00010764,2]
[346883299,1735339855136,-500.0,0.00010764,2]
[346883300,1735339855146,-500.0,0.00010764,2]
[346883301,1735339855157,-500.0,0.00010764,2]
[346883302,1735339855166,-500.0,0.00010764,2]
[346883303,1735339855176,-500.0,0.00010764,2]
[346883304,1735339855185,-500.0,0.00010764,2]
[346883305,1735339855195,-553.96,0.00010764,2]
[346883306,1735339855205,-500.0,0.00010764,2]
[346883307,1735339855214,-521.1,0.00010764,2]
[346883308,1735339855224,-500.0,0.00010764,2]
[346883309,1735339855234,-500.0,0.00010764,2]
[346883310,1735339855244,-500.0,0.00010764,2]
[346883311,1735339855254,-500.0,0.00010764,2]
[346883312,1735339855265,-500.0,0.00010764,2]
[346883313,1735339855275,-500.0,0.00010764,2]
[346883314,1735339855285,-558.42,0.00010764,2]
[346883315,1735339855295,-500.0,0.00010764,2]
[346883316,1735339855305,-500.0,0.00010764,2]
[346883317,1735339855316,-500.0,0.00010764,2]
[346883318,1735339855326,-500.0,0.00010764,2]
[346883319,1735339855336,-500.0,0.00010764,2]
[346883320,1735339855347,-500.0,0.00010764,2]
[346883321,1735339855357,-500.0,0.00010764,2]
[346883322,1735339855367,-500.0,0.00010764,2]
[346883323,1735339855377,-500.0,0.00010764,2]
[346883324,1735339855388,-500.0,0.00010764,2]
[346883325,1735339855398,-682.04,0.00010764,2]
[346883326,1735339855410,-500.0,0.00010764,2]
[346883327,1735339855420,-500.0,0.00010764,2]
[346883328,1735339855429,-653.51,0.00010764,2]
[346883329,1735339855439,-500.0,0.00010764,2]
[346883330,1735339855448,-500.0,0.00010764,2]
[346883331,1735339855458,-500.0,0.00010764,2]
[346883332,1735339855467,-381.36,0.00010785,2]
[346883333,1735339855477,-500.0,0.0001079,2]
[346883334,1735339855487,-300.0,0.000108,3]
[346883335,1735339855496,-600.0,0.000109,3]
[346883336,1735339855505,-908.7,0.00010911,2]
[346883337,1735339855515,-964.48,0.00010911,2]
[346883338,1735339855525,-1882.52,0.00010911,2]
[346883339,1735339855535,-1021.27,0.00010911,2]
[346883340,1735339855544,-762.0,0.00010911,2]
[346883341,1735339855554,-1265.09817,0.00010911,2]
[346883342,1735339855563,-1381.800066,0.00010911,2]
[346883343,1735339855573,-785.12,0.00010911,2]
[346883344,1735339855583,-799.11,0.00010911,2]
[346883345,1735339855592,-500.0,0.00010911,2]
[346883346,1735339855601,-500.0,0.00010911,2]
[346883347,1735339855611,-3328.76,0.00010911,2]
[346883348,1735339855619,-855.27,0.00010911,2]
[346883349,1735339855630,-836.61,0.00010911,2]
[346883350,1735339855639,-500.0,0.00010911,2]
[346883351,1735339855649,-1008.89,0.00010911,2]
[346883352,1735339855658,-734.52,0.00010911,2]
[346883353,1735339855668,-960.62,0.00010911,2]
[346883354,1735339855678,-1049.42,0.00010911,2]
[346883355,1735339855687,-886.99,0.00010911,2]
[346883356,1735339855696,-1831.10580286,0.00010958,2]
[346883357,1735339855705,-175.51,0.00010959,2]
[346883358,1735339855715,-150.0,0.00010959,2]
[346883359,1735339855724,-400.0,0.00010986,2]
[346883360,1735339855734,-6024.72,0.00010998,2]
[346883361,1735339855743,-1510.25,0.00010998,2]
[346883362,1735339855752,-1266.0,0.00010999,2]
[346883363,1735339855762,-2012.0,0.00010999,2]
[346883364,1735339855771,-565.0,0.00010999,2]
[346883365,1735339855780,-1900.0,0.00010999,2]
[346883366,1735339855790,-1256.0,0.00010999,2]
[346883367,1735339855799,-3772.0,0.00010999,2]
[346883368,1735339855809,-819.0,0.00010999,2]
[346883369,1735339855819,-921.0,0.00010999,2]
[346883370,1735339855829,-536.0,0.00010999,2]
[346883371,1735339855838,-3685.0,0.00010999,2]
[346883372,1735339855848,-150.0,0.00010999,2]
[346883373,1735339855859,-1171.0,0.00010999,2]
[346883374,1735339855868,-4852.886,0.00010999,2]
[346883375,1735339855877,-3889.0,0.00010999,2]
[346883376,1735339855887,-1102.0,0.00010999,2]
[346883377,1735339855896,-18000.0,0.00011,2]
[346883378,1735339855905,-500.0,0.00011,2]
[346883379,1735339855915,-500.0,0.0001101,2]
[346883380,1735339855924,-1049.5,0.0001101,2]
[346883381,1735339855934,-815.44,0.0001101,2]
[346883382,1735339855944,-752.2,0.0001101,2]
[346883383,1735339855953,-500.0,0.0001101,2]
[346883384,1735339855963,-827.67,0.0001101,2]
[346883385,1735339855972,-500.0,0.0001101,2]
[346883386,1735339855982,-500.0,0.0001101,2]
[346883387,1735339855991,-500.0,0.0001101,2]
[346883388,1735339856000,-727.69,0.0001101,2]
[346883389,1735339856010,-500.0,0.0001101,2]
[346883390,1735339856019,-500.0,0.0001101,2]
[346883391,1735339856028,-3071.29,0.00011011,2]
[346883392,1735339856038,-2943.32,0.00011011,2]
[346883393,1735339856048,-14190.97,0.00011011,2]
[346883394,1735339856057,-1824.78,0.00011011,2]
[346883395,1735339856067,-518.62,0.00011011,2]
[346883396,1735339856077,-928.95,0.00011011,2]
[346883397,1735339856092,-1089.7,0.00011011,2]
[346883398,1735339856103,-500.0,0.00011011,2]
[346883399,1735339856112,-1496.74,0.00011011,2]
[346883400,1735339856122,-10189.37,0.00011011,2]
[346883401,1735339856132,-500.0,0.00011011,2]
[346883402,1735339856142,-1050.63,0.00011011,2]
[346883403,1735339856151,-2202.54,0.00011011,2]
[346883404,1735339856161,-943.62,0.00011011,2]
[346883405,1735339856171,-1298.18,0.00011011,2]
[346883406,1735339856181,-1447.64,0.00011012,2]
[346883407,1735339856190,-500.0,0.00011012,2]
[346883408,1735339856199,-1000.0,0.00011012,2]
[346883409,1735339856209,-988.07,0.00011012,2]
[346883410,1735339856218,-688.98,0.00011012,2]
[346883411,1735339856227,-245.35,0.00011012,2]
[346883412,1735339856236,-500.0,0.00011021,2]
[346883413,1735339856247,-500.0,0.00011035,2]
[346883414,1735339856256,-1321.03,0.00011035,2]
[346883415,1735339856266,-500.0,0.00011035,2]
[346883416,1735339856276,-4318.04,0.00011035,2]
[346883417,1735339856285,-1242.09,0.00011035,2]
[346883418,1735339856295,-756.16,0.00011035,2]
[346883419,1735339856304,-1623.53,0.00011035,2]
[346883420,1735339856313,-899.69,0.00011035,2]
[346883421,1735339856323,-1750.27,0.00011035,2]
[346883422,1735339856332,-586.9,0.00011035,2]
[346883423,1735339856342,-500.0,0.00011035,2]
[346883424,1735339856351,-541.44,0.00011035,2]
[346883425,1735339856361,-500.0,0.00011035,2]
[346883426,1735339856370,-500.0,0.00011035,2]
[346883427,1735339856379,-510.54,0.00011035,2]
[346883428,1735339856388,-500.0,0.00011035,2]
[346883429,1735339856397,-500.0,0.00011035,2]
[346883430,1735339856407,-1685.67,0.00011035,2]
[346883431,1735339856417,-500.0,0.00011035,2]
[346883432,1735339856426,-500.0,0.00011035,2]
[346883433,1735339856435,-500.0,0.00011035,2]
[346883434,1735339856444,-168.78415405,0.00011036,2]
[346883435,1735339856453,-500.0,0.00011036,2]
[346883436,1735339856463,-500.0,0.00011036,2]
[346883437,1735339856472,-500.0,0.00011036,2]
[346883438,1735339856481,-500.0,0.00011036,2]
[346883439,1735339856491,-500.0,0.00011036,2]
[346883440,1735339856502,-500.0,0.00011036,2]
[346883441,1735339856513,-500.0,0.00011036,2]
[346883442,1735339856523,-500.0,0.00011036,2]
[346883443,1735339856532,-500.0,0.00011036,2]
[346883444,1735339856543,-536.19237458,0.00011036,2]
[346883445,1735339856553,-500.0,0.00011036,2]
[346883446,1735339856562,-500.0,0.00011036,2]
[346883447,1735339856573,-500.0,0.00011036,2]
[346883448,1735339856582,-500.0,0.00011036,2]
[346883449,1735339856592,-997.68,0.00011036,2]
[346883450,1735339856602,-500.0,0.00011036,2]
[346883451,1735339856612,-500.0,0.00011036,2]
[346883452,1735339856623,-500.0,0.00011036,2]
[346883453,1735339856634,-500.0,0.00011036,2]
[346883454,1735339856644,-268.66402727,0.00011037,2]
[346883455,1735339856654,-500.0,0.00011037,2]
[346883456,1735339856663,-500.0,0.00011037,2]
[346883457,1735339856674,-500.0,0.00011037,2]
[346883458,1735339856686,-500.0,0.00011037,2]
[346883459,1735339856697,-500.0,0.00011037,2]
[346883460,1735339856708,-500.0,0.00011037,2]
[346883461,1735339856717,-500.0,0.00011037,2]
[346883462,1735339856727,-500.0,0.00011037,2]
[346883463,1735339856736,-500.0,0.00011037,2]
[346883464,1735339856744,-500.0,0.00011037,2]
[346883465,1735339856754,-500.0,0.00011037,2]
[346883466,1735339856764,-500.0,0.00011037,2]
[346883467,1735339856773,-500.0,0.00011037,2]
[346883468,1735339856783,-500.0,0.00011037,2]
[346883469,1735339856792,-500.0,0.00011037,2]
[346883470,1735339856801,-500.0,0.00011037,2]
[346883471,1735339856810,-522.64,0.00011037,2]
[346883472,1735339856819,-500.0,0.00011037,2]
[346883473,1735339856827,-500.0,0.00011037,2]
[346883474,1735339856836,-515.46,0.00011037,2]
[346883475,1735339856845,-500.0,0.00011037,2]
[346883476,1735339856854,-509.72,0.00011037,2]
[346883477,1735339856863,-500.0,0.00011037,2]
[346883478,1735339856872,-500.0,0.00011037,2]
[346883479,1735339856882,-500.0,0.00011037,2]
[346883480,1735339856891,-500.0,0.00011037,2]
[346883481,1735339856899,-500.0,0.00011037,2]
[346883482,1735339856908,-500.0,0.00011037,2]
[346883483,1735339856917,-500.0,0.00011037,2]
[346883484,1735339856926,-567.72,0.00011037,2]
[346883485,1735339856935,-500.0,0.00011037,2]
[346883486,1735339856944,-500.0,0.00011037,2]
[346883487,1735339856954,-500.0,0.00011037,2]
[346883488,1735339856963,-500.0,0.00011037,2]
[346883489,1735339856973,-500.0,0.00011037,2]
[346883490,1735339856982,-519.4,0.00011037,2]
[346883491,1735339856992,-500.0,0.00011037,2]
[346883492,1735339857002,-520.51,0.00011037,2]
[346883493,1735339857012,-500.0,0.00011037,2]
[346883494,1735339857023,-500.0,0.00011037,2]
[346883495,1735339857032,-500.0,0.00011037,2]
[346883496,1735339857041,-675.6,0.00011037,2]
[346883497,1735339857051,-500.0,0.00011037,2]
[346883498,1735339857062,-500.0,0.00011037,2]
[346883499,1735339857072,-500.0,0.00011037,2]
[346883500,1735339857084,-578.43,0.00011037,2]
[346883501,1735339857094,-501.73,0.00011037,2]
[346883502,1735339857104,-1231.82,0.00011037,2]
[346883503,1735339857114,-500.0,0.00011037,2]
[346883504,1735339857126,-630.06,0.00011037,2]
[346883505,1735339857135,-500.0,0.00011037,2]
[346883506,1735339857144,-500.0,0.00011037,2]
[346883507,1735339857155,-1135.5,0.00011037,2]
[346883508,1735339857165,-2630.9,0.00011037,2]
[346883509,1735339857175,-751.31,0.00011037,2]
[346883510,1735339857185,-1328.54,0.00011037,2]
[346883511,1735339857195,-557.47,0.00011037,2]
[346883512,1735339857205,-821.31,0.00011037,2]
[346883513,1735339857215,-2721.16,0.00011037,2]
[346883514,1735339857225,-855.72,0.00011037,2]
[346883515,1735339857234,-570.02,0.00011037,2]
[346883516,1735339857244,-965.31,0.00011037,2]
[346883517,1735339857253,-1981.56,0.00011037,2]
[346883518,1735339857264,-617.06,0.00011037,2]
[346883519,1735339857275,-582.64,0.00011037,2]
[346883520,1735339857284,-500.0,0.00011037,2]
[346883521,1735339857294,-500.0,0.00011037,2]
[346883522,1735339857304,-1807.2,0.00011037,2]
[346883523,1735339857314,-640.16,0.00011037,2]
[346883524,1735339857324,-500.0,0.00011037,2]
[346883525,1735339857334,-500.0,0.00011037,2]
[346883526,1735339857343,-736.07,0.00011037,2]
[346883527,1735339857353,-820.22,0.00011037,2]
[346883528,1735339857363,-500.0,0.00011037,2]
[346883529,1735339857374,-1723.95,0.00011037,2]
[346883530,1735339857383,-500.0,0.00011037,2]
[346883531,1735339857393,-624.83,0.00011037,2]
[346883532,1735339857403,-605.57,0.00011037,2]
[346883533,1735339857413,-777.71,0.00011037,2]
[346883534,1735339857423,-1432.12,0.00011037,2]
[346883535,1735339857433,-500.0,0.00011037,2]
[346883536,1735339857442,-500.0,0.00011037,2]
[346883537,1735339857452,-508.29,0.00011037,2]
[346883538,1735339857462,-886.31,0.00011037,2]
[346883539,1735339857471,-500.0,0.00011037,2]
[346883540,1735339857481,-500.0,0.00011037,2]
[346883541,1735339857490,-500.0,0.00011037,2]
[346883542,1735339857499,-500.0,0.00011037,2]
[346883543,1735339857607,-500.0,0.00011037,2]
[346883544,1735339857617,-500.0,0.00011037,2]
[346883545,1735339857627,-500.0,0.00011037,2]
[346883546,1735339857637,-672.14,0.00011037,2]
[346883547,1735339857647,-500.0,0.00011037,2]
[346883548,1735339857656,-800.83,0.00011037,2]
[346883549,1735339857666,-500.0,0.00011037,2]
[346883550,1735339857675,-500.0,0.00011038,2]
[346883551,1735339857685,-500.0,0.00011038,2]
[346883552,1735339857694,-500.0,0.00011038,2]
[346883553,1735339857703,-500.0,0.00011038,2]
[346883554,1735339857712,-500.0,0.00011038,2]
[346883555,1735339857721,-500.0,0.00011038,2]
[346883556,1735339857730,-500.0,0.00011038,2]
[346883557,1735339857740,-500.0,0.00011038,2]
[346883558,1735339857749,-500.0,0.00011038,2]
[346883559,1735339857758,-500.0,0.00011038,2]
[346883560,1735339857768,-500.0,0.00011038,2]
[346883561,1735339857778,-500.0,0.00011038,2]
[346883562,1735339857787,-500.0,0.00011038,2]
[346883563,1735339857796,-500.0,0.00011038,2]
[346883564,1735339857805,-500.0,0.00011038,2]
[346883565,1735339857815,-500.0,0.00011038,2]
[346883566,1735339857824,-500.0,0.00011038,2]
[346883567,1735339857833,-500.0,0.00011038,2]
[346883568,1735339857842,-500.0,0.00011038,2]
[346883569,1735339857851,-500.0,0.00011038,2]
[346883570,1735339857860,-500.0,0.00011038,2]
[346883571,1735339857869,-500.0,0.00011038,2]
[346883572,1735339857879,-500.0,0.00011038,2]
[346883573,1735339857888,-500.0,0.00011038,2]
[346883574,1735339857899,-500.0,0.00011038,2]
[346883575,1735339857909,-500.0,0.00011038,2]
[346883576,1735339857919,-500.0,0.00011038,2]
[346883577,1735339857929,-500.0,0.00011038,2]
[346883578,1735339857939,-500.0,0.00011038,2]
[346883579,1735339857949,-500.0,0.00011038,2]
[346883580,1735339857960,-500.0,0.00011038,2]
[346883581,1735339857971,-500.0,0.00011038,2]
[346883582,1735339857982,-500.0,0.00011038,2]
[346883583,1735339857992,-500.0,0.00011038,2]
[346883584,1735339858002,-500.0,0.00011038,2]
[346883585,1735339858011,-628.33,0.00011038,2]
[346883586,1735339858020,-500.0,0.00011038,2]
[346883587,1735339858030,-500.0,0.00011038,2]
[346883588,1735339858040,-500.0,0.00011038,2]
[346883589,1735339858050,-500.0,0.00011038,2]
[346883590,1735339858060,-500.0,0.00011038,2]
[346883591,1735339858070,-591.86,0.00011038,2]
[346883592,1735339858084,-500.0,0.00011038,2]
[346883593,1735339858094,-500.0,0.00011038,2]
[346883594,1735339858104,-500.0,0.00011038,2]
[346883595,1735339858114,-500.0,0.00011038,2]
[346883596,1735339858126,-500.0,0.00011038,2]
[346883597,1735339858135,-572.97,0.00011038,2]
[346883598,1735339858145,-500.0,0.00011038,2]
[346883599,1735339858157,-500.0,0.00011038,2]
[346883600,1735339858169,-500.0,0.00011038,2]
[346883601,1735339858179,-500.0,0.00011038,2]
[346883602,1735339858188,-500.0,0.00011038,2]
[346883603,1735339858197,-500.0,0.00011038,2]
[346883604,1735339858207,-500.0,0.00011038,2]
[346883605,1735339858217,-500.0,0.00011038,2]
[346883606,1735339858226,-534.5,0.00011038,2]
[346883607,1735339858236,-500.0,0.00011038,2]
[346883608,1735339858247,-500.0,0.00011038,2]
[346883609,1735339858256,-500.0,0.00011038,2]
[346883610,1735339858266,-500.0,0.00011038,2]
[346883611,1735339858276,-500.0,0.00011038,2]
[346883612,1735339858285,-500.0,0.00011038,2]
[346883613,1735339858295,-500.0,0.00011038,2]
[346883614,1735339858304,-500.0,0.00011038,2]
[346883615,1735339858314,-500.0,0.00011038,2]
[346883616,1735339858323,-500.0,0.00011038,2]
[346883617,1735339858334,-500.0,0.00011038,2]
[346883618,1735339858344,-500.0,0.00011038,2]
[346883619,1735339858355,-568.53,0.00011038,2]
[346883620,1735339858364,-500.0,0.00011038,2]
[346883621,1735339858374,-500.0,0.00011038,2]
[346883622,1735339858384,-500.0,0.00011038,2]
[346883623,1735339858393,-500.0,0.00011038,2]
[346883624,1735339858403,-500.0,0.00011038,2]
[346883625,1735339858411,-500.0,0.00011038,2]
[346883626,1735339858421,-500.0,0.00011038,2]
[346883627,1735339858433,-635.27,0.00011038,2]
[346883628,1735339858442,-500.0,0.00011038,2]
[346883629,1735339858451,-500.0,0.00011038,2]
[346883630,1735339858461,-500.0,0.00011038,2]
[346883631,1735339858470,-500.0,0.00011038,2]
[346883632,1735339858479,-500.0,0.00011038,2]
[346883633,1735339858488,-500.0,0.00011038,2]
[346883634,1735339858497,-500.0,0.00011038,2]
[346883635,1735339858507,-504.62,0.00011038,2]
[346883636,1735339858517,-500.0,0.00011038,2]
[346883637,1735339858526,-500.0,0.00011038,2]
[346883638,1735339858535,-500.0,0.00011038,2]
[346883639,1735339858544,-596.66,0.00011038,2]
[346883640,1735339858554,-500.0,0.00011038,2]
[346883641,1735339858563,-414.40044845,0.00011038,2]
[346883642,1735339858574,-539.41,0.00011038,2]
[346883643,1735339858584,-361.73885045,0.00011038,2]
[346883644,1735339858595,-500.0,0.00011038,2]
[346883645,1735339858606,-500.0,0.00011038,2]
[346883646,1735339858617,-500.0,0.00011038,2]
[346883647,1735339858628,-500.0,0.00011038,2]
[346883648,1735339858639,-500.0,0.00011038,2]
[346883649,1735339858649,-500.0,0.00011038,2]
[346883650,1735339858659,-500.0,0.00011038,2]
[346883651,1735339858668,-500.0,0.00011038,2]
[346883652,1735339858678,-500.0,0.00011038,2]
[346883653,1735339858688,-500.0,0.00011038,2]
[346883654,1735339858697,-500.0,0.00011038,2]
[346883655,1735339858706,-500.0,0.00011038,2]
[346883656,1735339858715,-553.96,0.00011038,2]
[346883657,1735339858724,-500.0,0.00011038,2]
[346883658,1735339858734,-500.0,0.00011038,2]
[346883659,1735339858743,-500.0,0.00011038,2]
[346883660,1735339858752,-500.0,0.00011038,2]
[346883661,1735339858763,-500.0,0.00011038,2]
[346883662,1735339858772,-500.0,0.00011038,2]
[346883663,1735339858782,-558.42,0.00011038,2]
[346883664,1735339858794,-500.0,0.00011038,2]
[346883665,1735339858805,-500.0,0.00011038,2]
[346883666,1735339858814,-500.0,0.00011038,2]
[346883667,1735339858824,-500.0,0.00011038,2]
[346883668,1735339858834,-500.0,0.00011038,2]
[346883669,1735339858844,-500.0,0.00011038,2]
[346883670,1735339858855,-500.0,0.00011038,2]
[346883671,1735339858865,-500.0,0.00011038,2]
[346883672,1735339858875,-682.04,0.00011038,2]
[346883673,1735339858884,-500.0,0.00011038,2]
[346883674,1735339858893,-500.0,0.00011038,2]
[346883675,1735339858903,-653.51,0.00011038,2]
[346883676,1735339858912,-500.0,0.00011038,2]
[346883677,1735339858921,-500.0,0.00011038,2]
[346883678,1735339858930,-500.0,0.00011038,2]
[346883679,1735339858939,-482.36428318,0.00011087,2]
[346883680,1735339858948,-2000.0,0.00011126,2]
[346883681,1735339858958,-800.0,0.00011126,2]
[346883682,1735339858967,-184.24088894,0.00011184,2]
[346883683,1735339858976,-908.7,0.00011185,2]
[346883684,1735339858985,-964.48,0.00011185,2]
[346883685,1735339858995,-1882.52,0.00011185,2]
[346883686,1735339859004,-1021.27,0.00011185,2]
[346883687,1735339859016,-762.0,0.00011185,2]
[346883688,1735339859025,-1265.09817,0.00011185,2]
[346883689,1735339859034,-1381.800066,0.00011185,2]
[346883690,1735339859045,-785.12,0.00011185,2]
[346883691,1735339859057,-799.11,0.00011185,2]
[346883692,1735339859066,-500.0,0.00011185,2]
[346883693,1735339859077,-500.0,0.00011185,2]
[346883694,1735339859090,-3328.76,0.00011185,2]
[346883695,1735339859099,-855.27,0.00011185,2]
[346883696,1735339859109,-836.61,0.00011185,2]
[346883697,1735339859119,-500.0,0.00011185,2]
[346883698,1735339859128,-1008.89,0.00011185,2]
[346883699,1735339859138,-734.52,0.00011185,2]
[346883700,1735339859148,-960.62,0.00011185,2]
[346883701,1735339859159,-1049.42,0.00011185,2]
[346883702,1735339859169,-886.99,0.00011185,2]
[346883703,1735339859179,-596.79,0.000112,2]
[346883704,1735339859189,-3013.13372148,0.000112,2]
[346883705,1735339859198,-508.45,0.00011227,2]
[346883706,1735339859208,-429.20526385,0.00011232,2]
[346883707,1735339859217,-1000.0,0.00011261,2]
[346883708,1735339859228,-170.94472216,0.00011271,2]
[346883709,1735339859238,-6024.72,0.00011272,2]
[346883710,1735339859247,-1510.25,0.00011272,2]
[346883711,1735339859257,-1082.0,0.00011279,2]
[346883712,1735339859267,-4031.07,0.00011284,2]
[346883713,1735339859277,-2838.69,0.00011284,2]
[346883714,1735339859286,-500.0,0.00011284,2]
[346883715,1735339859295,-1098.39,0.00011284,2]
[346883716,1735339859305,-6380.65,0.00011284,2]
[346883717,1735339859314,-500.0,0.00011284,2]
[346883718,1735339859323,-1062.79,0.00011284,2]
[346883719,1735339859333,-644.44,0.00011284,2]
[346883720,1735339859342,-1061.48,0.00011284,2]
[346883721,1735339859351,-2268.21,0.00011284,2]
[346883722,1735339859360,-1064.06,0.00011284,2]
[346883723,1735339859369,-2571.82,0.00011284,2]
[346883724,1735339859378,-500.0,0.00011284,2]
[346883725,1735339859387,-1236.51,0.00011284,2]
[346883726,1735339859398,-1049.5,0.00011284,2]
[346883727,1735339859407,-815.44,0.00011284,2]
[346883728,1735339859416,-752.2,0.00011284,2]
[346883729,1735339859437,-4434.07,0.00011284,2]
[346883730,1735339859447,-500.0,0.00011284,2]
[346883731,1735339859456,-827.67,0.00011284,2]
[346883732,1735339859465,-500.0,0.00011284,2]
[346883733,1735339859475,-500.0,0.00011284,2]
[346883734,1735339859484,-500.0,0.00011284,2]
[346883735,1735339859493,-500.0,0.00011284,2]
[346883736,1735339859503,-1325.23,0.00011284,2]
[346883737,1735339859513,-727.69,0.00011284,2]
[346883738,1735339859522,-500.0,0.00011284,2]
[346883739,1735339859531,-500.0,0.00011284,2]
[346883740,1735339859542,-1966.17,0.00011284,2]
[346883741,1735339859552,-561.99,0.00011284,2]
[346883742,1735339859560,-1370.41,0.00011284,2]
[346883743,1735339859569,-500.0,0.00011284,2]
[346883744,1735339859578,-1634.37,0.00011284,2]
[346883745,1735339859588,-3156.36,0.00011284,2]
[346883746,1735339859598,-994.53,0.00011284,2]